[Event "Israel Youth-ch U12 2025"]
[Site "Rishon Le Zion"]
[Date "2025.04.09"]
[Round "6.4"]
[White "Blekh, Erik"]
[Black "Gurevich, Neria"]
[Result "1/2-1/2"]
[Annotator "RC"]
[ECO "A49"]
[WhiteElo "1899"]
[BlackElo "2048"]
[PlyCount "92"]
[EventDate "2025.04.03"]
[EventType "swiss"]
[EventCountry "ISR"]
[SourceTitle "playchess.com"]
[Source "ChessBase"]
[SourceQuality "1"]
[TimeControl "5400+30"]

1. Nf3 {[%emt 0:00:03]} Nf6 {[%emt 0:04:36]} 2. g3 {[%emt 0:00:29]} g6 {[%emt 0:00:22]} 3. b3 {[%emt 0:01:07]} d6 {[%emt 0:01:06]} 4. d4 {[%emt 0:01:36]} c5 {[%emt 0:00:57]} 5. Bb2 {[%emt 0:01:43]} cxd4 {[%emt 0:01:25]} 6. Nxd4 {[%emt 0:00:50]} d5 {[%emt 0:03:51]} 7. Bg2 {[%emt 0:03:24]} Bg7 {[%emt 0:01:12]} 8. O-O {[%emt 0:01:09]} O-O {[%emt 0:04:37]} 9. Nd2 {[%emt 0:05:37]} e5 {[%emt 0:04:45]} 10. N4f3 {[%emt 0:07:24]} e4 {[%emt 0:09:25]} 11. Ne1 {[%emt 0:10:37]} e3 {[%emt 0:03:13]} 12. fxe3 {[%emt 0:03:21]} Ng4 {[%emt 0:10:10]} 13. Bxg7 {[%emt 0:09:17]} Nxe3 {[%emt 0:01:27]} 14. Qc1 {[%emt 0:04:40]} Kxg7 {[%emt 0:01:09]} 15. Qb2+ {[%emt 0:02:13]} Kg8 {[%emt 0:02:22]} 16. Rf2 {[%emt 0:05:53]} Qb6 {[%emt 0:11:38]} 17. Bf3 {[%emt 0:04:33]} Bg4 {[%emt 0:03:12]} 18. Ng2 {[%emt 0:04:15]} Bxf3 {[%emt 0:03:39]} 19. Nxe3 {[%emt 0:00:56]} Qxe3 {[%emt 0:01:15]} 20. Nxf3 {[%emt 0:04:08]} Nc6 {[%emt 0:01:24]} 21. Rd1 {[%emt 0:00:33]} Rad8 {[%emt 0:01:41]} 22. Kg2 {[%emt 0:00:53]} Qe4 {[%emt 0:02:08]} 23. Kg1 {[%emt 0:02:01]} d4 {[%emt 0:04:02]} 24. a3 {[%emt 0:01:40]} Rd5 {[%emt 0:01:52]} 25. Nd2 {[%emt 0:02:23]} Qe6 {[%emt 0:01:13]} 26. Nf3 {[%emt 0:01:09]} Rfd8 {[%emt 0:02:02]} 27. Rd3 {[%emt 0:00:34]} h5 {[%emt 0:01:08]} 28. Qc1 {[%emt 0:00:22]} Ne5 {[%emt 0:05:13]} 29. Nxe5 {[%emt 0:02:16]} Rxe5 {[%emt 0:00:18]} 30. Qd2 {[%emt 0:00:36]} Red5 {[%emt 0:01:35]} 31. Rf4 {[%emt 0:00:24]} Qe5 {[%emt 0:00:57]} 32. Rdf3 {[%emt 0:00:51]} R8d7 {[%emt 0:00:21]} 33. Rd3 {[%emt 0:00:10]} R5d6 {[%emt 0:01:32]} 34. Rdf3 {[%emt 0:01:30]} Re7 {[%emt 0:01:35]} 35. Kf1 {[%emt 0:01:01]} a5 {[%emt 0:03:08]} 36. a4 {[%emt 0:00:17]} Qd5 {[%emt 0:00:50]} 37. Kg1 {[%emt 0:00:39]} Qe5 {[%emt 0:01:30]} 38. Kf1 {[%emt 0:00:09]} Rc7 {[%emt 0:00:36]} 39. Rd3 {[%emt 0:00:55]} Rcd7 {[%emt 0:01:03]} 40. Kg1 {[%emt 0:00:44]} Rd5 {[%emt 0:01:08]} 41. Kf1 {[%emt 0:00:44]} Qd6 {[%emt 0:00:48]} 42. Kg1 {[%emt 0:00:32]} b6 {[%emt 0:01:07]} 43. Kf2 {[%emt 0:01:17]} Qc5 {[%emt 0:00:39]} 44. Kf1 {[%emt 0:02:40]} Qc6 {[%emt 0:00:58]} 45. Kg1 {[%emt 0:00:32]} Qc5 {[%emt 0:01:05]} 46. Kf1 {[%emt 0:00:33]} Qc6 {[%emt 0:00:33]} 1/2-1/2

[Event "Israel Youth-ch U12 2025"]
[Site "Rishon Le Zion"]
[Date "2025.04.09"]
[Round "7.1"]
[White "Sason, Noam"]
[Black "Hochman, Gur"]
[Result "1-0"]
[Annotator "NA"]
[ECO "A07"]
[WhiteElo "2075"]
[BlackElo "1908"]
[PlyCount "51"]
[EventDate "2025.04.03"]
[EventType "swiss"]
[EventCountry "ISR"]
[SourceTitle "playchess.com"]
[Source "ChessBase"]
[SourceQuality "1"]
[TimeControl "5400+30"]

1. Nf3 {[%emt 0:00:01]} d5 {[%emt 0:00:11]} 2. g3 {[%emt 0:00:06]} Nf6 {[%emt 0:00:15]} 3. Bg2 {[%emt 0:00:02]} e6 {[%emt 0:00:15]} 4. O-O {[%emt 0:00:05]} Be7 {[%emt 0:00:07]} 5. d3 {[%emt 0:00:03]} O-O {[%emt 0:00:18]} 6. Bf4 {[%emt 0:00:06]} Nc6 {[%emt 0:02:29]} 7. c4 {[%emt 0:00:06]} Re8 {[%emt 0:04:55]} 8. Nc3 {[%emt 0:00:51]} Bd6 {[%emt 0:03:51]} 9. Bg5 {[%emt 0:06:12]} d4 {[%emt 0:00:45]} 10. Ne4 {[%emt 0:02:10]} Be7 {[%emt 0:02:58]} 11. Bxf6 {[%emt 0:02:40]} Bxf6 {[%emt 0:00:14]} 12. Nxf6+ {[%emt 0:00:04]} Qxf6 {[%emt 0:00:48]} 13. Nd2 {[%emt 0:00:42]} e5 {[%emt 0:01:16]} 14. f4 {[%emt 0:02:28]} Qh6 {[%emt 0:06:09]} 15. f5 {[%emt 0:02:00]} Ne7 {[%emt 0:02:07]} 16. g4 {[%emt 0:01:19]} Qg5 {[%emt 0:05:34]} 17. h3 {[%emt 0:05:11]} h5 {[%emt 0:04:01]} 18. Ne4 {[%emt 0:04:32]} Qe3+ {[%emt 0:00:34]} 19. Kh2 {[%emt 0:00:32]} hxg4 {[%emt 0:02:51]} 20. hxg4 {[%emt 0:00:21]} Qh6+ {[%emt 0:01:26]} 21. Kg3 {[%emt 0:03:19]} f6 {[%emt 0:01:51]} 22. Qb3 {[%emt 0:03:02]} Bxf5 {[%emt 0:06:03]} 23. gxf5 {[%emt 0:03:40]} Nxf5+ {[%emt 0:00:12]} 24. Rxf5 {[%emt 0:00:29]} Qg6+ {[%emt 0:00:11]} 25. Ng5 {[%emt 0:00:14]} fxg5 {[%emt 0:00:55]} 26. c5+ {[%emt 0:00:10]} 1-0

[Event "Israel Youth-ch U12 2025"]
[Site "Rishon Le Zion"]
[Date "2025.04.09"]
[Round "7.2"]
[White "Triger, Eitan"]
[Black "Eshkol, Idan"]
[Result "1-0"]
[Annotator "NA"]
[ECO "C42"]
[WhiteElo "1978"]
[BlackElo "1852"]
[PlyCount "89"]
[EventDate "2025.04.03"]
[EventType "swiss"]
[EventCountry "ISR"]
[SourceTitle "playchess.com"]
[Source "ChessBase"]
[SourceQuality "1"]
[TimeControl "5400+30"]

1. e4 {[%emt 0:00:20]} e5 {[%emt 0:00:02]} 2. Nf3 {[%emt 0:00:09]} Nf6 {[%emt 0:00:03]} 3. Nxe5 {[%emt 0:00:15]} d6 {[%emt 0:00:04]} 4. Nc4 {[%emt 0:00:13]} Nxe4 {[%emt 0:00:16]} 5. Qe2 {[%emt 0:00:05]} Qe7 {[%emt 0:00:05]} 6. d3 {[%emt 0:00:06]} Nf6 {[%emt 0:00:47]} 7. Bg5 {[%emt 0:00:21]} Qxe2+ {[%emt 0:00:20]} 8. Bxe2 {[%emt 0:00:06]} Be7 {[%emt 0:00:15]} 9. Nc3 {[%emt 0:00:06]} Be6 {[%emt 0:00:23]} 10. Bf3 {[%emt 0:01:41]} Nc6 {[%emt 0:01:17]} 11. O-O-O {[%emt 0:01:06]} O-O-O {[%emt 0:00:50]} 12. Bxc6 {[%emt 0:05:55]} bxc6 {[%emt 0:00:05]} 13. Na5 {[%emt 0:00:08]} Kd7 {[%emt 0:00:44]} 14. d4 {[%emt 0:01:51]} Ng4 {[%emt 0:05:49]} 15. Bxe7 {[%emt 0:00:22]} Kxe7 {[%emt 0:04:17]} 16. Nxc6+ {[%emt 0:00:09]} Kd7 {[%emt 0:00:03]} 17. Nxd8 {[%emt 0:00:16]} Rxd8 {[%emt 0:00:04]} 18. Rd2 {[%emt 0:00:38]} Rb8 {[%emt 0:00:47]} 19. Re1 {[%emt 0:07:10]} Nf6 {[%emt 0:04:14]} 20. d5 {[%emt 0:00:34]} Bf5 {[%emt 0:00:35]} 21. Rde2 {[%emt 0:00:05]} Ng8 {[%emt 0:00:44]} 22. f3 {[%emt 0:00:22]} Rb4 {[%emt 0:00:20]} 23. Re8 {[%emt 0:00:17]} f6 {[%emt 0:03:33]} 24. Rxg8 {[%emt 0:00:08]} Bg6 {[%emt 0:00:03]} 25. Rxg7+ {[%emt 0:00:10]} Kc8 {[%emt 0:00:04]} 26. Ree7 {[%emt 0:00:23]} Rc4 {[%emt 0:00:10]} 27. g4 {[%emt 0:01:27]} a6 {[%emt 0:00:41]} 28. h4 {[%emt 0:00:17]} Kd8 {[%emt 0:01:30]} 29. h5 {[%emt 0:00:30]} Be8 {[%emt 0:00:05]} 30. Re4 {[%emt 0:00:18]} Rxe4 {[%emt 0:00:23]} 31. Nxe4 {[%emt 0:00:04]} Bb5 {[%emt 0:00:36]} 32. Rxh7 {[%emt 0:00:09]} Kc8 {[%emt 0:00:13]} 33. Rg7 {[%emt 0:00:33]} f5 {[%emt 0:00:12]} 34. gxf5 {[%emt 0:00:06]} a5 {[%emt 0:12:23]} 35. h6 {[%emt 0:00:17]} Kb7 {[%emt 0:01:21]} 36. Nxd6+ {[%emt 0:00:06]} Kb6 {[%emt 0:00:17]} 37. Nxb5 {[%emt 0:00:07]} a4 {[%emt 0:00:10]} 38. h7 {[%emt 0:00:03]} a3 {[%emt 0:01:15]} 39. h8=Q {[%emt 0:00:05]} axb2+ {[%emt 0:13:45]} 40. Kxb2 {[%emt 0:00:19]} Kc5 {[%emt 0:04:08]} 41. Rxc7+ {[%emt 0:00:07]} Kb4 {[%emt 0:00:46]} 42. Qc3+ {[%emt 0:00:43]} Ka4 {[%emt 0:00:10]} 43. Ra7+ {[%emt 0:00:21]} Kxb5 {[%emt 0:00:25]} 44. Qc6+ {[%emt 0:00:04]} Kb4 {[%emt 0:00:22]} 45. a3# {[%emt 0:00:06]} 1-0

[Event "Israel Youth-ch U12 2025"]
[Site "Rishon Le Zion"]
[Date "2025.04.09"]
[Round "7.3"]
[White "Gurevich, Neria"]
[Black "Zuker, Zivi"]
[Result "1-0"]
[Annotator "NA"]
[ECO "D58"]
[WhiteElo "2048"]
[BlackElo "1769"]
[PlyCount "37"]
[EventDate "2025.04.03"]
[EventType "swiss"]
[EventCountry "ISR"]
[SourceTitle "playchess.com"]
[Source "ChessBase"]
[SourceQuality "1"]
[TimeControl "5400+30"]

1. d4 {[%emt 0:00:03]} d5 {[%emt 0:00:08]} 2. c4 {[%emt 0:00:09]} e6 {[%emt 0:00:11]} 3. Nf3 {[%emt 0:00:15]} Nf6 {[%emt 0:00:15]} 4. Nc3 {[%emt 0:00:28]} Be7 {[%emt 0:00:23]} 5. Bg5 {[%emt 0:00:30]} O-O {[%emt 0:00:26]} 6. e3 {[%emt 0:00:35]} b6 {[%emt 0:00:21]} 7. cxd5 {[%emt 0:00:36]} exd5 {[%emt 0:00:49]} 8. Bd3 {[%emt 0:00:42]} Bb7 {[%emt 0:00:00]} 9. O-O {[%emt 0:01:09]} Nbd7 {[%emt 0:01:41]} 10. Qc2 {[%emt 0:02:31]} h6 {[%emt 0:01:39]} 11. Bh4 {[%emt 0:01:47]} c5 {[%emt 0:02:47]} 12. Rfd1 {[%emt 0:02:23]} Rc8 {[%emt 0:02:40]} 13. Rac1 {[%emt 0:04:04]} a6 {[%emt 0:03:00]} 14. a4 {[%emt 0:13:25]} Re8 {[%emt 0:05:45]} 15. Bg3 {[%emt 0:10:44]} Bf8 {[%emt 0:08:06]} 16. Ne5 {[%emt 0:10:38]} cxd4 {[%emt 0:09:14]} 17. exd4 {[%emt 0:00:52]} Ne4 {[%emt 0:04:47]} 18. f3 {[%emt 0:04:00]} Nxg3 {[%emt 0:07:26]} 19. Bh7+ {[%emt 0:00:13]} 1-0

[Event "Israel Youth-ch U12 2025"]
[Site "Rishon Le Zion"]
[Date "2025.04.09"]
[Round "7.4"]
[White "Belkovsky, Guy"]
[Black "Cohen, Dotan"]
[Result "1-0"]
[Annotator "NA"]
[ECO "B47"]
[WhiteElo "2067"]
[BlackElo "1722"]
[PlyCount "67"]
[EventDate "2025.04.03"]
[EventType "swiss"]
[EventCountry "ISR"]
[SourceTitle "playchess.com"]
[Source "ChessBase"]
[SourceQuality "1"]
[TimeControl "5400+30"]

1. e4 {[%emt 0:00:59]} c5 {[%emt 0:00:27]} 2. Nf3 {[%emt 0:00:02]} e6 {[%emt 0:00:41]} 3. d4 {[%emt 0:00:10]} cxd4 {[%emt 0:00:17]} 4. Nxd4 {[%emt 0:00:07]} Nc6 {[%emt 0:00:20]} 5. Nc3 {[%emt 0:00:02]} Qc7 {[%emt 0:00:32]} 6. g3 {[%emt 0:00:02]} a6 {[%emt 0:00:28]} 7. Bg2 {[%emt 0:00:04]} Nf6 {[%emt 0:01:01]} 8. O-O {[%emt 0:00:26]} Nxd4 {[%emt 0:00:41]} 9. Qxd4 {[%emt 0:00:03]} Bc5 {[%emt 0:00:19]} 10. Bf4 {[%emt 0:00:09]} d6 {[%emt 0:00:47]} 11. Qd2 {[%emt 0:00:01]} h6 {[%emt 0:00:45]} 12. Rad1 {[%emt 0:00:04]} e5 {[%emt 0:00:31]} 13. Be3 {[%emt 0:00:02]} Be6 {[%emt 0:00:26]} 14. Bxc5 {[%emt 0:07:42]} dxc5 {[%emt 0:02:43]} 15. Nd5 {[%emt 0:11:27]} Bxd5 {[%emt 0:00:40]} 16. exd5 {[%emt 0:00:06]} Qd6 {[%emt 0:01:21]} 17. c4 {[%emt 0:04:17]} O-O {[%emt 0:03:30]} 18. Qa5 {[%emt 0:07:28]} Rad8 {[%emt 0:06:45]} 19. b4 {[%emt 0:05:34]} b6 {[%emt 0:09:20]} 20. bxc5 {[%emt 0:02:17]} bxc5 {[%emt 0:01:58]} 21. Rb1 {[%emt 0:02:11]} Rb8 {[%emt 0:01:27]} 22. Qa3 {[%emt 0:02:08]} Nd7 {[%emt 0:08:04]} 23. Qa4 {[%emt 0:03:20]} f5 {[%emt 0:04:52]} 24. Qc6 {[%emt 0:05:26]} Rf6 {[%emt 0:01:11]} 25. Rxb8+ {[%emt 0:00:06]} Nxb8 {[%emt 0:00:04]} 26. Qc8+ {[%emt 0:00:04]} Kh7 {[%emt 0:01:41]} 27. Bh3 {[%emt 0:00:17]} Nd7 {[%emt 0:09:31]} 28. Rb1 {[%emt 0:00:40]} Kg6 {[%emt 0:08:55]} 29. Qe8+ {[%emt 0:04:10]} Kg5 {[%emt 0:00:24]} 30. Rb7 {[%emt 0:04:02]} Nb6 {[%emt 0:01:50]} 31. Rxg7+ {[%emt 0:01:05]} Rg6 {[%emt 0:00:09]} 32. Rxg6+ {[%emt 0:01:13]} Qxg6 {[%emt 0:00:13]} 33. Qxe5 {[%emt 0:01:16]} Qf6 {[%emt 0:35:07]} 34. Qe3+ {[%emt 0:40:30]} 1-0

[Event "Israel Youth-ch U12 2025"]
[Site "Rishon Le Zion"]
[Date "2025.04.10"]
[Round "8.1"]
[White "Belkovsky, Guy"]
[Black "Sason, Noam"]
[Result "1/2-1/2"]
[Annotator "NA"]
[ECO "B76"]
[WhiteElo "2067"]
[BlackElo "2075"]
[PlyCount "75"]
[EventDate "2025.04.03"]
[EventType "swiss"]
[EventCountry "ISR"]
[SourceTitle "playchess.com"]
[Source "ChessBase"]
[SourceQuality "1"]
[TimeControl "5400+30"]

1. e4 {[%emt 0:00:17]} c5 {[%emt 0:00:03]} 2. Nf3 {[%emt 0:00:11]} d6 {[%emt 0:00:04]} 3. d4 {[%emt 0:00:06]} cxd4 {[%emt 0:00:03]} 4. Nxd4 {[%emt 0:00:07]} Nf6 {[%emt 0:00:03]} 5. Nc3 {[%emt 0:00:07]} g6 {[%emt 0:00:04]} 6. Be3 {[%emt 0:00:06]} Bg7 {[%emt 0:00:06]} 7. f3 {[%emt 0:00:04]} Nc6 {[%emt 0:00:09]} 8. Qd2 {[%emt 0:00:22]} O-O {[%emt 0:00:06]} 9. O-O-O {[%emt 0:00:06]} d5 {[%emt 0:00:15]} 10. exd5 {[%emt 0:00:16]} Nxd5 {[%emt 0:00:17]} 11. Nxc6 {[%emt 0:00:06]} bxc6 {[%emt 0:00:09]} 12. Bd4 {[%emt 0:00:02]} e5 {[%emt 0:00:44]} 13. Bc5 {[%emt 0:00:06]} Be6 {[%emt 0:00:11]} 14. Ne4 {[%emt 0:00:08]} Re8 {[%emt 0:00:24]} 15. h4 {[%emt 0:00:11]} Nf4 {[%emt 0:06:45]} 16. g3 {[%emt 0:01:05]} Qxd2+ {[%emt 0:02:08]} 17. Rxd2 {[%emt 0:00:07]} Nd5 {[%emt 0:07:02]} 18. g4 {[%emt 0:01:07]} h5 {[%emt 0:05:33]} 19. g5 {[%emt 0:00:08]} Red8 {[%emt 0:04:30]} 20. a4 {[%emt 0:08:32]} a5 {[%emt 0:14:12]} 21. Bc4 {[%emt 0:08:16]} Bf8 {[%emt 0:09:10]} 22. Rhd1 {[%emt 0:13:52]} Bxc5 {[%emt 0:01:23]} 23. Nxc5 {[%emt 0:00:11]} Rf8 {[%emt 0:01:16]} 24. Bxd5 {[%emt 0:05:10]} cxd5 {[%emt 0:07:20]} 25. Re1 {[%emt 0:05:55]} Rac8 {[%emt 0:03:08]} 26. Nxe6 {[%emt 0:04:52]} fxe6 {[%emt 0:00:02]} 27. Rxe5 {[%emt 0:00:25]} Rc6 {[%emt 0:02:30]} 28. Rde2 {[%emt 0:01:27]} Kf7 {[%emt 0:01:05]} 29. b3 {[%emt 0:21:20]} Rb8 {[%emt 0:01:44]} 30. R5e3 {[%emt 0:00:30]} Rb4 {[%emt 0:01:13]} 31. Rh2 {[%emt 0:00:26]} Rf4 {[%emt 0:03:37]} 32. Kd2 {[%emt 0:03:29]} Ke7 {[%emt 0:03:54]} 33. Rh3 {[%emt 0:08:33]} Kd6 {[%emt 0:03:22]} 34. Rh2 {[%emt 0:02:18]} Rd4+ {[%emt 0:05:36]} 35. Rd3 {[%emt 0:01:33]} Rf4 {[%emt 0:00:14]} 36. Re3 {[%emt 0:02:44]} Rd4+ {[%emt 0:00:08]} 37. Rd3 {[%emt 0:00:08]} Rf4 {[%emt 0:00:07]} 38. Re3 {[%emt 0:02:34]} 1/2-1/2

[Event "Israel Youth-ch U12 2025"]
[Site "Rishon Le Zion"]
[Date "2025.04.10"]
[Round "8.2"]
[White "Gurevich, Neria"]
[Black "Triger, Eitan"]
[Result "0-1"]
[Annotator "NA"]
[ECO "E07"]
[WhiteElo "2048"]
[BlackElo "1978"]
[PlyCount "156"]
[EventDate "2025.04.03"]
[EventType "swiss"]
[EventCountry "ISR"]
[SourceTitle "playchess.com"]
[Source "ChessBase"]
[SourceQuality "1"]
[TimeControl "5400+30"]

1. d4 {[%emt 0:00:02]} d5 {[%emt 0:00:13]} 2. c4 {[%emt 0:00:08]} c6 {[%emt 0:00:15]} 3. Nf3 {[%emt 0:00:47]} Nf6 {[%emt 0:00:08]} 4. g3 {[%emt 0:01:06]} e6 {[%emt 0:00:26]} 5. Bg2 {[%emt 0:00:35]} Be7 {[%emt 0:00:23]} 6. O-O {[%emt 0:00:40]} O-O {[%emt 0:00:48]} 7. Nc3 {[%emt 0:01:30]} Nbd7 {[%emt 0:00:38]} 8. Nd2 {[%emt 0:10:08]} a5 {[%emt 0:10:05]} 9. e4 {[%emt 0:07:20]} dxc4 {[%emt 0:00:20]} 10. Nxc4 {[%emt 0:02:09]} b5 {[%emt 0:00:31]} 11. Ne3 {[%emt 0:02:23]} Nb6 {[%emt 0:05:41]} 12. Ne2 {[%emt 0:04:50]} Ba6 {[%emt 0:07:05]} 13. Qc2 {[%emt 0:02:05]} b4 {[%emt 0:02:22]} 14. Rd1 {[%emt 0:01:10]} Rc8 {[%emt 0:01:09]} 15. b3 {[%emt 0:05:09]} Nfd7 {[%emt 0:05:34]} 16. Nf4 {[%emt 0:09:26]} c5 {[%emt 0:08:40]} 17. d5 {[%emt 0:02:11]} e5 {[%emt 0:00:28]} 18. Ne6 {[%emt 0:00:44]} fxe6 {[%emt 0:06:08]} 19. dxe6 {[%emt 0:00:10]} Qe8 {[%emt 0:06:50]} 20. exd7 {[%emt 0:00:32]} Nxd7 {[%emt 0:00:13]} 21. Bb2 {[%emt 0:11:28]} c4 {[%emt 0:15:22]} 22. Bh3 {[%emt 0:02:00]} Rc7 {[%emt 0:03:47]} 23. Be6+ {[%emt 0:06:08]} Kh8 {[%emt 0:00:06]} 24. Bxc4 {[%emt 0:01:21]} Bxc4 {[%emt 0:01:19]} 25. Nxc4 {[%emt 0:00:16]} a4 {[%emt 0:02:16]} 26. Qe2 {[%emt 0:10:45]} Bc5 {[%emt 0:01:12]} 27. Rf1 {[%emt 0:00:37]} a3 {[%emt 0:00:32]} 28. Bc1 {[%emt 0:00:11]} Bd4 {[%emt 0:01:00]} 29. Rb1 {[%emt 0:00:18]} Qg6 {[%emt 0:00:57]} 30. Bd2 {[%emt 0:01:09]} Rb7 {[%emt 0:00:14]} 31. Qe1 {[%emt 0:03:24]} Nc5 {[%emt 0:01:09]} 32. Be3 {[%emt 0:01:39]} Nxe4 {[%emt 0:01:42]} 33. Rd1 {[%emt 0:04:09]} Bc3 {[%emt 0:04:26]} 34. Qe2 {[%emt 0:02:45]} h6 {[%emt 0:00:29]} 35. f3 {[%emt 0:00:35]} Nf6 {[%emt 0:01:03]} 36. Bc5 {[%emt 0:02:09]} Rc8 {[%emt 0:01:57]} 37. Nd6 {[%emt 0:03:27]} Rxc5 {[%emt 0:00:04]} 38. Nxb7 {[%emt 0:00:07]} Rc7 {[%emt 0:00:06]} 39. Nd6 {[%emt 0:01:27]} Bd4+ {[%emt 0:00:51]} 40. Kh1 {[%emt 0:00:22]} Nd5 {[%emt 0:01:15]} 41. Ne4 {[%emt 0:00:58]} Ne3 {[%emt 0:05:53]} 42. Rc1 {[%emt 0:00:11]} Rf7 {[%emt 0:00:05]} 43. Rfe1 {[%emt 0:01:08]} Qf5 {[%emt 0:00:34]} 44. Rc6 {[%emt 0:01:59]} Qxf3+ {[%emt 0:01:33]} 45. Qxf3 {[%emt 0:00:03]} Rxf3 {[%emt 0:00:08]} 46. Rc8+ {[%emt 0:00:17]} Kh7 {[%emt 0:00:09]} 47. Rb8 {[%emt 0:00:35]} Nd5 {[%emt 0:00:36]} 48. Kg2 {[%emt 0:00:54]} Rd3 {[%emt 0:00:29]} 49. h4 {[%emt 0:00:41]} Nc3 {[%emt 0:00:47]} 50. Rxb4 {[%emt 0:00:36]} Nxa2 {[%emt 0:02:24]} 51. Rb7 {[%emt 0:00:26]} Nc3 {[%emt 0:00:44]} 52. Nf6+ {[%emt 0:00:09]} Kg6 {[%emt 0:00:08]} 53. Ne8 {[%emt 0:00:07]} e4 {[%emt 0:00:30]} 54. Rb8 {[%emt 0:01:04]} Rxg3+ {[%emt 0:02:33]} 55. Kh1 {[%emt 0:00:38]} a2 {[%emt 0:01:25]} 56. Ra8 {[%emt 0:00:15]} e3 {[%emt 0:01:01]} 57. Ra6+ {[%emt 0:00:25]} Kh7 {[%emt 0:00:11]} 58. Nd6 {[%emt 0:00:47]} Rg6 {[%emt 0:00:39]} 59. h5 {[%emt 0:00:19]} Rf6 {[%emt 0:00:05]} 60. b4 {[%emt 0:00:55]} e2 {[%emt 0:00:17]} 61. Kg2 {[%emt 0:00:03]} Rf2+ {[%emt 0:00:27]} 62. Kh3 {[%emt 0:00:16]} Rf1 {[%emt 0:00:18]} 63. Rxe2 {[%emt 0:00:06]} Nxe2 {[%emt 0:00:03]} 64. Rxa2 {[%emt 0:00:07]} Nf4+ {[%emt 0:01:07]} 65. Kg4 {[%emt 0:00:21]} Ne6 {[%emt 0:00:34]} 66. Re2 {[%emt 0:00:35]} Ng5 {[%emt 0:00:45]} 67. b5 {[%emt 0:00:40]} Rb1 {[%emt 0:00:06]} 68. Kf5 {[%emt 0:00:54]} Bc5 {[%emt 0:00:13]} 69. Ne8 {[%emt 0:00:13]} Rxb5 {[%emt 0:00:15]} 70. Re5 {[%emt 0:00:21]} Ra5 {[%emt 0:00:38]} 71. Kg4 {[%emt 0:00:13]} Bb4 {[%emt 0:00:47]} 72. Re2 {[%emt 0:00:15]} Ra4 {[%emt 0:01:31]} 73. Kf5 {[%emt 0:00:57]} Bc3 {[%emt 0:00:29]} 74. Re7 {[%emt 0:00:23]} Kg8 {[%emt 0:00:58]} 75. Rc7 {[%emt 0:00:44]} Ra5+ {[%emt 0:00:38]} 76. Kg6 {[%emt 0:00:08]} Ne6 {[%emt 0:01:00]} 77. Nf6+ {[%emt 0:00:18]} Bxf6 {[%emt 0:00:07]} 78. Rc8+ {[%emt 0:00:05]} Nf8+ {[%emt 0:00:05]} 0-1

[Event "Israel Youth-ch U12 2025"]
[Site "Rishon Le Zion"]
[Date "2025.04.10"]
[Round "8.3"]
[White "Eshkol, Idan"]
[Black "Cohen, Israel"]
[Result "0-1"]
[Annotator "NA"]
[ECO "C01"]
[WhiteElo "1852"]
[BlackElo "1879"]
[PlyCount "56"]
[EventDate "2025.04.03"]
[EventType "swiss"]
[EventCountry "ISR"]
[SourceTitle "playchess.com"]
[Source "ChessBase"]
[SourceQuality "1"]
[TimeControl "5400+30"]

1. e4 {[%emt 0:00:03]} e6 {[%emt 0:00:10]} 2. d4 {[%emt 0:00:02]} d5 {[%emt 0:00:13]} 3. exd5 {[%emt 0:00:04]} exd5 {[%emt 0:00:09]} 4. Bd3 {[%emt 0:00:16]} Nc6 {[%emt 0:00:14]} 5. Nf3 {[%emt 0:00:09]} Bg4 {[%emt 0:01:11]} 6. c3 {[%emt 0:00:04]} Bd6 {[%emt 0:00:40]} 7. O-O {[%emt 0:01:12]} Qd7 {[%emt 0:07:07]} 8. Nbd2 {[%emt 0:03:58]} O-O-O {[%emt 0:00:21]} 9. b4 {[%emt 0:01:23]} h5 {[%emt 0:01:57]} 10. b5 {[%emt 1:28:19]} Nce7 {[%emt 0:01:16]} 11. Qa4 {[%emt 0:00:00]} Kb8 {[%emt 0:03:49]} 12. Ba3 {[%emt 0:00:00]} f6 {[%emt 0:04:53]} 13. Bc5 {[%emt 0:00:00]} Nc8 {[%emt 0:12:52]} 14. Rfb1 {[%emt 0:00:00]} g5 {[%emt 0:07:13]} 15. Rb3 {[%emt 0:00:00]} Nge7 {[%emt 0:03:29]} 16. Ra3 {[%emt 0:00:00]} b6 {[%emt 0:00:22]} 17. Bxd6 {[%emt 0:00:00]} Qxd6 {[%emt 0:02:31]} 18. c4 {[%emt 0:00:00]} dxc4 {[%emt 0:00:30]} 19. Be4 {[%emt 0:00:00]} Bxf3 {[%emt 0:00:30]} 20. Nxf3 {[%emt 0:00:00]} g4 {[%emt 0:00:30]} 21. Qa6 {[%emt 0:00:00]} c6 {[%emt 0:00:30]} 22. bxc6 {[%emt 0:00:00]} Nxc6 {[%emt 0:00:30]} 23. Ne1 {[%emt 0:00:00]} Rhe8 {[%emt 0:00:30]} 24. Re3 {[%emt 0:00:00]} f5 {[%emt 0:00:30]} 25. Bxf5 {[%emt 0:00:00]} Qxd4 {[%emt 0:00:30]} 26. Rxe8 {[%emt 0:00:00]} Rxe8 {[%emt 0:00:30]} 27. Nc2 {[%emt 0:00:00]} Qxa1+ {[%emt 0:00:30]} 28. Nxa1 {[%emt 0:00:00]} Re1# {[%emt 0:00:30]} 0-1

[Event "Israel Youth-ch U12 2025"]
[Site "Rishon Le Zion"]
[Date "2025.04.10"]
[Round "8.4"]
[White "Chalopoviz, Ilay"]
[Black "Hochman, Gur"]
[Result "1/2-1/2"]
[Annotator "NA"]
[ECO "C18"]
[WhiteElo "1633"]
[BlackElo "1908"]
[PlyCount "68"]
[EventDate "2025.04.03"]
[EventType "swiss"]
[EventCountry "ISR"]
[SourceTitle "playchess.com"]
[Source "ChessBase"]
[SourceQuality "1"]
[TimeControl "5400+30"]

1. e4 {[%emt 0:00:02]} e6 {[%emt 0:00:06]} 2. d4 {[%emt 0:00:09]} d5 {[%emt 0:00:09]} 3. Nc3 {[%emt 0:00:08]} Bb4 {[%emt 0:00:06]} 4. e5 {[%emt 0:00:08]} c5 {[%emt 0:00:08]} 5. a3 {[%emt 0:00:11]} Bxc3+ {[%emt 0:00:07]} 6. bxc3 {[%emt 0:00:13]} Qa5 {[%emt 0:00:05]} 7. Bd2 {[%emt 0:00:22]} Qa4 {[%emt 0:00:09]} 8. Qg4 {[%emt 0:00:33]} g6 {[%emt 0:00:09]} 9. h4 {[%emt 0:00:55]} h6 {[%emt 0:00:13]} 10. h5 {[%emt 0:00:17]} g5 {[%emt 0:00:10]} 11. f4 {[%emt 0:00:33]} f5 {[%emt 0:04:12]} 12. exf6 {[%emt 0:01:48]} Nxf6 {[%emt 0:00:17]} 13. Qg3 {[%emt 0:04:00]} Ne4 {[%emt 0:07:16]} 14. Qe3 {[%emt 0:03:44]} cxd4 {[%emt 0:09:40]} 15. Qxd4 {[%emt 0:07:16]} Qxd4 {[%emt 0:00:04]} 16. cxd4 {[%emt 0:00:17]} Nxd2 {[%emt 0:04:22]} 17. Kxd2 {[%emt 0:00:08]} gxf4 {[%emt 0:00:36]} 18. Rh4 {[%emt 0:02:51]} Rg8 {[%emt 0:17:15]} 19. Nh3 {[%emt 0:07:02]} f3 {[%emt 0:08:56]} 20. gxf3 {[%emt 0:01:48]} Nc6 {[%emt 0:02:34]} 21. Bb5 {[%emt 0:13:28]} Rg2+ {[%emt 0:02:28]} 22. Kc3 {[%emt 0:03:02]} Rh2 {[%emt 0:09:42]} 23. Re1 {[%emt 0:07:16]} e5 {[%emt 0:02:25]} 24. Rxe5+ {[%emt 0:00:46]} Kd8 {[%emt 0:00:21]} 25. Rxd5+ {[%emt 0:02:07]} Kc7 {[%emt 0:00:12]} 26. Bf1 {[%emt 0:09:59]} Be6 {[%emt 0:01:41]} 27. Rc5 {[%emt 0:07:21]} b6 {[%emt 0:00:32]} 28. Rb5 {[%emt 0:05:18]} a6 {[%emt 0:00:14]} 29. Rb1 {[%emt 0:00:30]} Bf5 {[%emt 0:05:13]} 30. Rc1 {[%emt 0:00:40]} Rh1 {[%emt 0:01:40]} 31. Kd2 {[%emt 0:04:23]} Rg8 {[%emt 0:03:18]} 32. Ke3 {[%emt 0:04:36]} b5 {[%emt 0:05:15]} 33. Kf2 {[%emt 0:03:59]} Rh2+ {[%emt 0:01:39]} 34. Ke3 {[%emt 0:01:00]} Rh1 {[%emt 0:00:19]} 1/2-1/2